fUSD/lending_fUSD_20250906
["ID","MTS","AMOUNT","RATE_DAILY","PERIOD"]
[383849640,1757142654780,-151.0,0.00054794,120]
[383849642,1757142654790,-403.39075191,0.00054794,120]
[383849644,1757142654799,-339.481056,0.00054794,120]
[383849646,1757142654809,-151.0,0.00054794,10]
[383849648,1757142654818,-408.09371566,0.00054794,120]
[383849650,1757142654828,-400.0,0.00054794,120]
[383849652,1757142654838,-173.482653,0.00054794,120]
[383849653,1757142654847,-151.0,0.00054794,120]
[383849654,1757142654857,-151.0,0.00054794,120]
[383849655,1757142654867,-151.0,0.00054794,120]
[383849656,1757142654877,-339.481056,0.00054794,120]
[383849657,1757142654887,-151.0,0.00054794,120]
[383849658,1757142654896,-400.0,0.00054794,120]
[383849659,1757142654907,-151.0,0.00054794,10]
[383849660,1757142654916,-400.0,0.00054794,120]
[383849662,1757142654925,-173.482653,0.00054794,120]
[383849663,1757142654935,-151.0,0.00054794,120]
[383849665,1757142654944,-151.0,0.00054794,120]
[383849668,1757142654953,-400.0,0.00054794,120]
[383849669,1757142654962,-400.0,0.00054794,120]
[383849671,1757142654972,-400.0,0.00054794,120]
[383849673,1757142654981,-173.482653,0.00054794,120]
[383849675,1757142654990,-151.365262,0.00054794,120]
[383849677,1757142655000,-400.0,0.00054794,120]
[383849679,1757142655009,-400.0,0.00054794,120]
[383849681,1757142655019,-245.78619,0.00054794,120]
[383849684,1757142655028,-173.482653,0.00054794,120]
[383849685,1757142655038,-245.78619,0.00054794,120]
[383849687,1757142655048,-400.32966271,0.00054794,120]
[383849689,1757142655057,-245.78619,0.00054794,120]
[383849691,1757142655066,-403.13643695,0.00054794,120]
[383849693,1757142655077,-210.656511,0.00054794,120]
[383849695,1757142655087,-201.482259,0.00054794,120]
[383849697,1757142655096,-245.78619,0.00054794,120]
[383849699,1757142655106,-401.97305845,0.00054794,120]
[383849701,1757142655115,-151.0,0.00054794,120]
[383849703,1757142655124,-551.56,0.00054794,120]
[383849705,1757142655134,-400.0,0.00054794,120]
[383849707,1757142655143,-210.656511,0.00054794,120]
[383849709,1757142655152,-400.0,0.00054794,120]
[383849711,1757142655161,-201.482259,0.00054794,120]
[383849713,1757142655171,-346.418084,0.00054794,120]
[383849715,1757142655179,-151.0,0.00054794,120]
[383849717,1757142655190,-210.656511,0.00054794,120]
[383849719,1757142655199,-201.482259,0.00054794,120]
[383849720,1757142655208,-500.0,0.00054794,120]
[383849721,1757142655217,-400.0,0.00054794,120]
[383849722,1757142655226,-400.0,0.00054794,120]
[383849723,1757142655235,-346.418084,0.00054794,120]
[383849724,1757142655244,-151.0,0.00054794,120]
[383849725,1757142655256,-411.03078185,0.00054794,120]
[383849726,1757142655267,-151.0,0.00054794,120]
[383849727,1757142655277,-505.97973861,0.00054794,120]
[383849728,1757142655286,-644.322575,0.00054794,120]
[383849729,1757142655295,-210.656511,0.00054794,120]
[383849730,1757142655303,-201.482259,0.00054794,120]
[383849731,1757142655312,-346.418084,0.00054794,120]
[383849732,1757142655321,-400.0,0.00054794,120]
[383849733,1757142655330,-400.0,0.00054794,120]
[383849734,1757142655339,-151.0,0.00054794,120]
[383849735,1757142655348,-400.0,0.00054794,120]
[383849736,1757142655357,-400.0,0.00054794,120]
[383849737,1757142655367,-644.322575,0.00054794,120]
[383849738,1757142655376,-346.418084,0.00054794,120]
[383849739,1757142655385,-408.80055075,0.00054794,120]
[383849740,1757142655560,-151.0,0.00054794,120]
[383849741,1757142655570,-400.0,0.00054794,120]
[383849742,1757142655580,-400.0,0.00054794,120]
[383849743,1757142655589,-525.46619931,0.00054794,120]
[383849744,1757142655600,-644.322575,0.00054794,120]
[383849745,1757142655609,-400.0,0.00054794,120]
[383849746,1757142655618,-400.0,0.00054794,120]
[383849747,1757142655627,-400.0,0.00054794,120]
[383849748,1757142655637,-644.322575,0.00054794,120]
[383849749,1757142655646,-400.0,0.00054794,120]
[383849750,1757142655657,-151.0,0.00054794,10]
[383849751,1757142655668,-315.384747,0.00054794,120]
[383849752,1757142655678,-402.85576388,0.00054794,120]
[383849753,1757142655687,-401.24013924,0.00054794,120]
[383849754,1757142655697,-315.384747,0.00054794,120]
[383849755,1757142655706,-400.0,0.00054794,120]
[383849756,1757142655716,-975.14,0.00054794,120]
[383849757,1757142655725,-400.0,0.00054794,120]
[383849758,1757142655734,-400.87291636,0.00054794,120]
[383849759,1757142655744,-315.384747,0.00054794,120]
[383849760,1757142655754,-400.0,0.00054794,120]
[383849761,1757142655764,-400.0,0.00054794,120]
[383849762,1757142655773,-315.384747,0.00054794,120]
[383849764,1757142655783,-180.65051299,0.00054794,120]
[383849766,1757142655793,-409.72340487,0.00054794,60]
[383849767,1757142655802,-400.0,0.00054794,120]
[383849769,1757142655812,-400.0,0.00054794,120]
[383849771,1757142655822,-400.0,0.00054794,120]
[383849773,1757142655832,-151.0,0.00054794,120]
[383849775,1757142655841,-406.93218459,0.00054794,120]
[383849777,1757142655851,-402.24788633,0.00054794,120]
[383849779,1757142655860,-405.76733576,0.00054794,120]
[383849781,1757142655869,-409.19373058,0.00054794,120]
[383849783,1757142655878,-400.0,0.00054794,120]
[383849785,1757142655888,-400.0,0.00054794,120]
[383849787,1757142655897,-403.48342231,0.00054794,120]
[383849789,1757142655907,-400.0,0.00054794,120]
[383849791,1757142655917,-407.56202101,0.00054794,120]
[383849793,1757142655927,-400.0,0.00054794,120]
[383849795,1757142655936,-404.09316154,0.00054794,120]
[383849797,1757142655946,-400.0,0.00054794,120]
[383849799,1757142655955,-400.0,0.00054794,120]
[383849801,1757142655964,-400.0,0.00054794,120]
[383849803,1757142655974,-402.01119832,0.00054794,120]
[383849805,1757142655983,-400.0,0.00054794,120]
[383849807,1757142655992,-400.0,0.00054794,120]
[383849809,1757142656002,-401.57409605,0.00054794,120]
[383849811,1757142656011,-404.16395858,0.00054794,120]
[383849813,1757142656020,-410.58,0.00054794,120]
[383849815,1757142656030,-403.31183484,0.00054794,120]
[383849817,1757142656039,-404.71783146,0.00054794,120]
[383849819,1757142656048,-400.0,0.00054794,120]
[383849821,1757142656058,-408.23900168,0.00054794,120]
[383849823,1757142656067,-403.63296663,0.00054794,120]
[383849825,1757142656077,-400.0,0.00054794,120]
[383849827,1757142656086,-406.2212332,0.00054794,120]
[383849829,1757142656095,-400.0,0.00054794,120]
[383849831,1757142656106,-1019.73,0.00054794,120]
[383849833,1757142656116,-400.0,0.00054794,120]
[383849835,1757142656125,-407.79286637,0.00054794,120]
[383849837,1757142656135,-400.0,0.00054794,120]
[383849839,1757142656144,-400.0,0.00054794,120]
[383849841,1757142656153,-402.15994209,0.00054794,120]
[383849843,1757142656163,-400.0,0.00054794,120]
[383849846,1757142656181,-405.33005724,0.00054794,120]
[383849849,1757142656194,-405.44130635,0.00054794,120]
[383849851,1757142656205,-400.0,0.00054794,120]
[383849853,1757142656215,-400.0,0.00054794,120]
[383849855,1757142656225,-400.0,0.00054794,30]
[383849857,1757142656237,-400.0,0.00054794,120]
[383849859,1757142656246,-400.0,0.00054794,120]
[383849861,1757142656256,-400.0,0.00054794,120]
[383849863,1757142656266,-151.0,0.00054794,120]
[383849865,1757142656276,-400.0,0.00054794,120]
[383849867,1757142656286,-400.0,0.00054794,120]
[383849869,1757142656296,-400.0,0.00054794,120]
[383849871,1757142656305,-151.0,0.00054794,120]
[383849873,1757142656315,-404.25490468,0.00054794,120]
[383849875,1757142656326,-151.0,0.00054794,120]
[383849877,1757142656335,-400.0,0.00054794,120]
[383849879,1757142656345,-151.0,0.00054794,120]
[383849881,1757142656354,-812.172578,0.00054794,120]
[383849883,1757142656365,-403.10168619,0.00054794,120]
[383849885,1757142656377,-812.172578,0.00054794,120]
[383849887,1757142656386,-151.0,0.00054794,120]
[383849889,1757142656396,-400.0,0.00054794,120]
[383849890,1757142656406,-400.0,0.00054794,120]
[383849891,1757142656415,-400.0,0.00054794,120]
[383849892,1757142656426,-400.0,0.00054794,120]
[383849893,1757142656436,-812.172578,0.00054794,120]
[383849894,1757142656446,-400.0,0.00054794,120]
[383849895,1757142656457,-500.0,0.00054794,120]
[383849896,1757142656468,-405.61211865,0.00054794,120]
[383849897,1757142656480,-499.95086001,0.00054794,120]
[383849899,1757142656490,-400.0,0.00054794,120]
[383849901,1757142656500,-500.0,0.00054794,120]
[383849903,1757142656511,-500.0,0.00054794,120]
[383849905,1757142656520,-812.172578,0.00054794,120]
[383849907,1757142656530,-151.0,0.00054794,120]
[383849909,1757142656540,-515.25755763,0.00054794,120]
[383849911,1757142656550,-400.0,0.00054794,120]
[383849913,1757142656560,-400.0,0.00054794,120]
[383849915,1757142656570,-407.42827153,0.00054794,120]
[383849917,1757142656580,-223.99356,0.00054794,120]
[383849919,1757142656590,-400.0,0.00054794,120]
[383849921,1757142656600,-400.0,0.00054794,120]
[383849923,1757142656610,-403.48231729,0.00054794,120]
[383849925,1757142656620,-400.0,0.00054794,120]
[383849927,1757142656630,-400.0,0.00054794,120]
[383849929,1757142656640,-223.99356,0.00054794,120]
[383849931,1757142656649,-400.0,0.00054794,120]
[383849933,1757142656659,-532.44,0.00054794,120]
[383849935,1757142656669,-151.0,0.00054794,2]
[383849937,1757142656679,-408.79047901,0.00054794,120]
[383849939,1757142656689,-223.99356,0.00054794,120]
[383849942,1757142656700,-151.0,0.00054794,2]
[383849943,1757142656711,-171.98784187,0.00054794,120]
[383849945,1757142656721,-408.3040679,0.00054794,120]
[383849947,1757142656730,-223.99356,0.00054794,120]
[383849950,1757142656740,-790.624522,0.00054794,120]
[383849952,1757142656750,-400.0,0.00054794,120]
[383849953,1757142656759,-790.624522,0.00054794,120]
[383849955,1757142656768,-408.43389882,0.00054794,120]
[383849957,1757142656778,-400.0,0.00054794,120]
[383849959,1757142656788,-151.0,0.00054794,120]
[383849961,1757142656797,-400.0,0.00054794,120]
[383849963,1757142656807,-790.624522,0.00054794,120]
[383849965,1757142656816,-543.62626831,0.00054794,120]
[383849968,1757142656826,-402.88609692,0.00054794,120]
[383849970,1757142656835,-581.198494,0.00054794,120]
[383849972,1757142656845,-400.0,0.00054794,120]
[383849974,1757142656854,-151.0,0.00054794,120]
[383849976,1757142656863,-151.0,0.00054794,120]
[383849978,1757142656873,-400.0,0.00054794,120]
[383849979,1757142656882,-400.0,0.00054794,120]
[383849982,1757142656892,-790.624522,0.00054794,120]
[383849984,1757142656902,-537.49,0.00054794,120]
[383849985,1757142656913,-403.78702488,0.00054794,120]
[383849988,1757142656923,-581.198494,0.00054794,120]
[383849989,1757142656932,-402.64349439,0.00054794,120]
[383849992,1757142656942,-151.0,0.00054794,120]
[383849994,1757142656951,-407.75329505,0.00054794,120]
[383849996,1757142656960,-400.0,0.00054794,120]
[383849998,1757142656970,-581.198494,0.00054794,120]
[383850000,1757142656979,-823.6,0.00054794,120]
[383850002,1757142656989,-151.0,0.00054794,120]
[383850004,1757142656998,-151.0,0.00054794,120]
[383850006,1757142657007,-400.0,0.00054794,120]
[383850008,1757142657017,-402.24358957,0.00054794,14]
[383850010,1757142657026,-581.198494,0.00054794,120]
[383850012,1757142657035,-400.0,0.00054794,120]
[383850014,1757142657045,-400.0,0.00054794,120]
[383850016,1757142657054,-151.0,0.00054794,120]
[383850018,1757142657063,-400.0,0.00054794,120]
[383850020,1757142657073,-211.79139507,0.00054794,120]
[383850022,1757142657082,-403.71070377,0.00054794,120]
[383850024,1757142657092,-400.0,0.00054794,120]
[383850026,1757142657101,-151.0,0.00054794,120]
[383850028,1757142657110,-151.86608,0.00054794,120]
[383850030,1757142657120,-401.54015717,0.00054794,120]
[383850032,1757142657129,-2058.71,0.00054794,5]
[383850034,1757142657139,-400.0,0.00054794,120]
[383850036,1757142657148,-151.0,0.00054794,120]
[383850038,1757142657158,-151.86608,0.00054794,120]
[383850040,1757142657167,-403.14939131,0.00054794,30]
[383850042,1757142657176,-400.0,0.00054794,120]
[383850044,1757142657185,-421.32676565,0.00054794,120]
[383850046,1757142657196,-151.86608,0.00054794,120]
[383850048,1757142657205,-402.53194085,0.00054794,120]
[383850050,1757142657214,-400.0,0.00054794,120]
[383850052,1757142657223,-16029.5,0.00054794,120]
[383850054,1757142657233,-400.0,0.00054794,120]
[383850056,1757142657242,-151.86608,0.00054794,120]
[383850058,1757142657251,-151.0,0.00054794,120]
[383850060,1757142657261,-151.0,0.00054794,120]
[383850062,1757142657270,-795.97,0.00054794,120]
[383850064,1757142657279,-151.0,0.00054794,120]
[383850066,1757142657289,-400.0,0.00054794,120]
[383850068,1757142657298,-557.5,0.00054794,120]
[383850070,1757142657308,-151.0,0.00054794,120]
[383850072,1757142657318,-402.53659641,0.00054794,120]
[383850074,1757142657329,-400.0,0.00054794,120]
[383850076,1757142657338,-402.3381544,0.00054794,120]
[383850078,1757142657348,-188.12238,0.00054794,120]
[383850080,1757142657357,-400.0,0.00054794,120]
[383850082,1757142657367,-400.0,0.00054794,120]
[383850084,1757142657377,-404.89662115,0.00054794,120]
[383850086,1757142657386,-400.0,0.00054794,60]
[383850088,1757142657395,-400.0,0.00054794,120]
[383850090,1757142657405,-400.0,0.00054794,120]
[383850092,1757142657414,-400.0,0.00054794,120]
[383850094,1757142657423,-400.0,0.00054794,120]
[383850096,1757142657432,-702.786079,0.00054794,120]
[383850098,1757142657442,-400.0,0.00054794,120]
[383850101,1757142657452,-400.0,0.00054794,120]
[383850103,1757142657461,-702.786079,0.00054794,120]
[383850105,1757142657478,-400.0,0.00054794,120]
[383850107,1757142657487,-238.379131,0.00054794,120]
[383850109,1757142657495,-702.786079,0.00054794,120]
[383850111,1757142657503,-400.0,0.00054794,120]
[383850113,1757142657512,-400.0,0.00054794,120]
[383850115,1757142657522,-238.379131,0.00054794,120]
[383850117,1757142657531,-400.0,0.00054794,120]
[383850119,1757142657541,-402.44166124,0.00054794,120]
[383850121,1757142657549,-702.786079,0.00054794,120]
[383850123,1757142657559,-606.28,0.00054794,120]
[383850125,1757142657569,-238.379131,0.00054794,120]
[383850127,1757142657579,-400.98447756,0.00054794,5]
[383850129,1757142657591,-400.0,0.00054794,120]
[383850131,1757142657600,-406.70485356,0.00054794,120]
[383850133,1757142657609,-405.19397258,0.00054794,120]
[383850135,1757142657619,-400.0,0.00054794,120]
[383850137,1757142657629,-238.379131,0.00054794,120]
[383850139,1757142657638,-224.65677456,0.00054794,120]
[383850141,1757142657648,-400.0,0.00054794,120]
[383850143,1757142657657,-500.0,0.00054794,120]
[383850145,1757142657667,-464.62572337,0.00054794,120]
[383850147,1757142657676,-500.0,0.00054794,120]
[383850149,1757142657686,-402.30135585,0.00054794,120]
[383850151,1757142657695,-500.0,0.00054794,120]
[383850153,1757142657704,-402.54620299,0.00054794,120]
[383850155,1757142657714,-500.0,0.00054794,120]
[383850157,1757142657724,-400.0,0.00054794,120]
[383850159,1757142657734,-400.0,0.00054794,120]
[383850161,1757142657743,-503.44359349,0.00054794,120]
[383850163,1757142657752,-400.0,0.00054794,120]
[383850165,1757142657762,-414.80878072,0.00054794,120]
[383850167,1757142657771,-400.0,0.00054794,120]
[383850169,1757142657781,-400.0,0.00054794,120]
[383850171,1757142657790,-406.52088778,0.00054794,120]
[383850173,1757142657799,-407.64383035,0.00054794,120]
[383850175,1757142657809,-400.0,0.00054794,120]
[383850178,1757142657819,-403.79104641,0.00054794,120]
[383850180,1757142657831,-151.0,0.00054794,120]
[383850182,1757142657848,-400.0,0.00054794,120]
[383850184,1757142657857,-400.0,0.00054794,120]
[383850186,1757142657867,-485.02,0.00054794,118]
[383850188,1757142657878,-400.0,0.00054794,120]
[383850190,1757142657888,-400.0,0.00054794,120]
[383850192,1757142657897,-151.0,0.00054794,120]
[383850194,1757142657906,-400.0,0.00054794,120]
[383850196,1757142657916,-151.0,0.00054794,120]
[383850198,1757142657926,-400.0,0.00054794,120]
[383850200,1757142657935,-407.14193772,0.00054794,120]
[383850202,1757142657945,-407.74011571,0.00054794,120]
[383850204,1757142657955,-662.448502,0.00054794,120]
[383850206,1757142657964,-400.0,0.00054794,120]
[383850208,1757142657973,-400.0,0.00054794,120]
[383850210,1757142657982,-400.0,0.00054794,120]
[383850212,1757142657991,-662.448502,0.00054794,120]
[383850214,1757142658001,-400.0,0.00054794,120]
[383850216,1757142658011,-401.25883523,0.00054794,120]
[383850217,1757142658020,-403.34833499,0.00054794,120]
[383850218,1757142658028,-400.0,0.00054794,120]
[383850219,1757142658037,-400.0,0.00054794,120]
[383850220,1757142658047,-662.448502,0.00054794,120]
[383850221,1757142658055,-400.0,0.00054794,120]
[383850222,1757142658065,-400.0,0.00054794,120]
[383850223,1757142658074,-410.4794927,0.00054794,120]
[383850224,1757142658083,-403.18551664,0.00054794,120]
[383850225,1757142658092,-400.0,0.00054794,120]
[383850227,1757142658101,-662.448502,0.00054794,120]
[383850229,1757142658110,-400.0,0.00054794,120]
[383850231,1757142658119,-523.49,0.00054794,120]
[383850233,1757142658129,-400.0,0.00054794,120]
[383850235,1757142658138,-400.0,0.00054794,120]
[383850237,1757142658148,-400.0,0.00054794,120]
[383850240,1757142658159,-407.35561379,0.00054794,120]
[383850242,1757142658172,-400.0,0.00054794,120]
[383850244,1757142658182,-400.0,0.00054794,120]
[383850246,1757142658191,-473.47459119,0.00054794,120]
[383850248,1757142658201,-402.95596277,0.00054794,120]
[383850250,1757142658210,-1982.43,0.00054794,120]
[383850252,1757142658220,-411.25963864,0.00054794,120]
[383850254,1757142658229,-401.0520559,0.00054794,120]
[383850256,1757142658239,-400.0,0.00054794,120]
[383850258,1757142658248,-400.0,0.00054794,120]
[383850260,1757142658258,-430.24811391,0.00054794,120]
[383850262,1757142658267,-195.15557228,0.00054794,120]
[383850264,1757142658276,-400.0,0.00054794,120]
[383850266,1757142658286,-400.0,0.00054794,120]
[383850268,1757142658296,-500.0,0.00054794,2]
[383850270,1757142658306,-2754.375304,0.00054794,120]
[383850272,1757142658315,-419.33,0.00054794,120]
[383850274,1757142658325,-400.0,0.00054794,120]
[383850276,1757142658335,-358.152526,0.00054794,120]
[383850278,1757142658344,-400.57234402,0.00054794,3]
[383850280,1757142658354,-2754.375304,0.00054794,120]
[383850282,1757142658363,-400.0,0.00054794,120]
[383850284,1757142658373,-151.0,0.00054794,120]
[383850286,1757142658383,-402.35801394,0.00054794,120]
[383850289,1757142658394,-400.0,0.00054794,120]
[383850290,1757142658404,-1748.103596,0.00054794,120]
[383850293,1757142658415,-358.152526,0.00054794,120]
[383850294,1757142658424,-400.0,0.00054794,120]
[383850296,1757142658433,-2754.375304,0.00054794,120]
[383850298,1757142658443,-1748.103596,0.00054794,120]
[383850300,1757142658453,-358.152526,0.00054794,120]
[383850302,1757142658462,-152.217732,0.00054794,120]
[383850304,1757142658471,-400.0,0.00054794,120]
[383850306,1757142658483,-2754.375304,0.00054794,120]
[383850308,1757142658493,-400.0,0.00054794,120]
[383850310,1757142658502,-402.24891866,0.00054794,120]
[383850312,1757142658511,-400.0,0.00054794,120]
[383850314,1757142658520,-1748.103596,0.00054794,120]
[383850316,1757142658530,-358.152526,0.00054794,120]
[383850318,1757142658540,-400.0,0.00054794,120]
[383850335,1757142658550,-409.75501099,0.00054794,120]
[383850336,1757142658749,-1748.103596,0.00054794,120]
[383850337,1757142658760,-400.0,0.00054794,120]
[383850338,1757142658769,-400.0,0.00054794,120]
[383850339,1757142658779,-2337.394473,0.00054794,120]
[383850340,1757142658789,-151.0,0.00054794,120]
[383850341,1757142658798,-450.76392288,0.00054794,120]
[383850342,1757142658808,-400.0,0.00054794,120]
[383850343,1757142658817,-400.0,0.00054794,120]
[383850344,1757142658826,-300.79340221,0.00054794,120]
[383850345,1757142658836,-400.0,0.00054794,120]
[383850346,1757142658845,-400.0,0.00054794,120]
[383850347,1757142658855,-2337.394473,0.00054794,120]
[383850348,1757142658864,-151.0,0.00054794,120]
[383850349,1757142658873,-151.0,0.00054794,120]
[383850350,1757142658883,-400.0,0.00054794,120]
[383850351,1757142658892,-400.0,0.00054794,120]
[383850352,1757142658902,-403.32690168,0.00054794,120]
[383850353,1757142658911,-2337.394473,0.00054794,120]
[383850354,1757142658921,-151.0,0.00054794,120]
[383850355,1757142658931,-349.55691911,0.00054794,120]
[383850356,1757142658941,-5131.000149,0.00054794,30]
[383850357,1757142658951,-2337.394473,0.00054794,120]
[383850358,1757142658961,-400.0,0.00054794,120]
[383850359,1757142658970,-406.94352492,0.00054794,120]
[383850360,1757142658980,-5131.000149,0.00054794,30]
[383850361,1757142658990,-400.0,0.00054794,120]
[383850362,1757142659000,-400.0,0.00054794,120]
[383850363,1757142659010,-800.31,0.00054794,120]
[383850364,1757142659020,-406.25005968,0.00054794,120]
[383850365,1757142659030,-170.954605,0.00054794,30]
[383850367,1757142659040,-558.060746,0.00054794,120]
[383850368,1757142659049,-5131.000149,0.00054794,30]
[383850370,1757142659060,-400.0,0.00054794,120]
[383850372,1757142659070,-785.32,0.00054794,120]
[383850373,1757142659080,-170.954605,0.00054794,30]
[383850374,1757142659089,-400.0,0.00054794,120]
[383850375,1757142659099,-558.060746,0.00054794,120]
[383850376,1757142659109,-409.07311138,0.00054794,120]
[383850377,1757142659118,-400.0,0.00054794,60]
[383850378,1757142659127,-5131.000149,0.00054794,30]
[383850379,1757142659136,-151.0,0.00054794,60]
[383850380,1757142659146,-400.0,0.00054794,120]
[383850381,1757142659155,-170.954605,0.00054794,30]
[383850382,1757142659165,-400.0,0.00054794,120]
[383850383,1757142659175,-151.0,0.00054794,120]
[383850384,1757142659184,-558.060746,0.00054794,120]
[383850385,1757142659194,-401.98489778,0.00054794,120]
[383850386,1757142659204,-400.0,0.00054794,120]
[383850387,1757142659213,-151.0,0.00054794,60]
[383850388,1757142659222,-170.954605,0.00054794,30]
[383850389,1757142659231,-558.060746,0.00054794,120]
[383850390,1757142659241,-151.0,0.00054794,60]
[383850391,1757142659250,-151.0,0.00054794,120]
[383850392,1757142659259,-400.0,0.00054794,120]
[383850393,1757142659269,-400.0,0.00054794,120]
[383850394,1757142659279,-402.08239334,0.00054794,120]
[383850395,1757142659288,-401.40177836,0.00054794,120]
[383850396,1757142659297,-400.0,0.00054794,120]
[383850397,1757142659306,-400.0,0.00054794,120]
[383850398,1757142659315,-151.0,0.00054794,60]
[383850399,1757142659325,-151.0,0.00054794,120]
[383850400,1757142659335,-400.0,0.00054794,120]
[383850401,1757142659344,-400.0,0.00054794,120]
[383850402,1757142659354,-405.54697921,0.00054794,120]
[383850403,1757142659363,-410.41295317,0.00054794,120]
[383850404,1757142659373,-400.0,0.00054794,120]
[383850405,1757142659382,-500.19201179,0.00054794,120]
[383850406,1757142659392,-400.0,0.00054794,120]
[383850407,1757142659402,-625.838594,0.00054794,120]
[383850408,1757142659411,-400.0,0.00054794,120]
[383850409,1757142659420,-400.0,0.00054794,120]
[383850410,1757142659430,-400.0,0.00054794,120]
[383850411,1757142659439,-401.9026591,0.00054794,120]
[383850412,1757142659450,-625.838594,0.00054794,120]
[383850413,1757142659459,-772.5,0.00054794,120]
[383850414,1757142659469,-403.27968265,0.00054794,120]
[383850415,1757142659482,-501.16,0.00054794,120]
[383850416,1757142659491,-689.61,0.00054794,120]
[383850417,1757142659500,-400.0,0.00054794,120]
[383850418,1757142659510,-400.0,0.00054794,120]
[383850419,1757142659519,-625.838594,0.00054794,120]
[383850420,1757142659528,-401.94904138,0.00054794,120]
[383850421,1757142659538,-625.838594,0.00054794,120]
[383850422,1757142659547,-400.0,0.00054794,120]
[383850423,1757142659556,-403.0289004,0.00054794,120]
[383850424,1757142659567,-400.0,0.00054794,120]
[383850425,1757142659576,-400.0,0.00054794,120]
[383850426,1757142659585,-400.0,0.00054794,120]
[383850427,1757142659594,-400.0,0.00054794,120]
[383850428,1757142659603,-400.0,0.00054794,120]
[383850429,1757142659613,-400.0,0.00054794,120]
[383850430,1757142659623,-400.0,0.00054794,120]
[383850431,1757142659632,-400.0,0.00054794,120]
[383850432,1757142659642,-411.94778724,0.00054794,120]
[383850433,1757142659651,-400.0,0.00054794,120]
[383850434,1757142659662,-400.0,0.00054794,120]
[383850435,1757142659672,-400.0,0.00054794,120]
[383850436,1757142659681,-403.14750331,0.00054794,120]
[383850437,1757142659691,-400.45563352,0.00054794,2]
[383850438,1757142659700,-400.0,0.00054794,120]
[383850439,1757142659709,-400.0,0.00054794,120]
[383850440,1757142659719,-400.0,0.00054794,120]
[383850441,1757142659728,-400.0,0.00054794,120]
[383850442,1757142659738,-400.0,0.00054794,120]
[383850443,1757142659749,-513.72,0.00054794,120]
[383850444,1757142659758,-400.0,0.00054794,120]
[383850445,1757142659767,-403.54322458,0.00054794,120]
[383850446,1757142659776,-401.6349021,0.00054794,120]
[383850447,1757142659785,-475.59,0.00054794,120]
[383850448,1757142659794,-400.0,0.00054794,120]
[383850449,1757142659804,-400.0,0.00054794,120]
[383850450,1757142659813,-400.0,0.00054794,2]
[383850451,1757142659822,-400.0,0.00054794,120]
[383850452,1757142659831,-624.690439,0.00054794,120]
[383850453,1757142659841,-311.07096551,0.00054794,2]
[383850454,1757142659850,-409.62717943,0.00054794,120]
[383850455,1757142659859,-400.0,0.00054794,120]
[383850456,1757142659868,-400.0,0.00054794,120]
[383850457,1757142659878,-402.41728783,0.00054794,120]
[383850458,1757142659887,-624.690439,0.00054794,120]
[383850459,1757142659896,-363.50134754,0.00054794,120]
[383850460,1757142659906,-400.0,0.00054794,120]
[383850461,1757142659918,-400.0,0.00054794,120]
[383850462,1757142659928,-624.690439,0.00054794,120]
[383850463,1757142659937,-404.06390086,0.00054794,120]
[383850464,1757142659947,-624.690439,0.00054794,120]
[383850465,1757142659956,-169.85619584,0.00054794,120]